Cogmind - Beta 13 @@@ ROGUE MODE // 2024.04.04 @ 21:24:50 Player: Sixten Result: Destroyed by G-47 Trooper with Particle Gun Performance ------------- Evolutions (1) 500 Regions Visited (6) 1200 Robots Destroyed (66) 330 Value Destroyed (1050) 1050 Prototype IDs (26) 520 Alien Tech Used (0) 0 Bonus (335) 335 TOTAL SCORE: 3935 Bonus ------- Follower Combat Kills 35 Aligned with FarCom 300 Cogmind --------- Core Integrity 0/400 Matter 189/300 Energy 47/100 System Corruption 0% Temperature Critical (595) Movement Core (500) Ox9 Location -8/Mines Parts ------- > --- POWER (1) -------- (None) > --- PROPULSION (4) --- (None) > --- UTILITY (2) ------ Large Storage Unit > --- WEAPON (2) ------- AWS/Thermal > --- INVENTORY (15) --- Improved Ion Engine Improved Ion Engine Flight Unit Flight Unit Flight Unit Flight Unit Weight Redist. System Weight Redist. System Medium Laser Improved Medium Laser Particle Cannon Improved Assault Rifle Mining Claw Peak State ------------ > --- POWER ------------ (None) > --- PROPULSION ------- Armored Wheel > --- UTILITY ---------- Large Storage Unit > --- WEAPON ----------- AWS/Thermal > --- INVENTORY -------- Improved Ion Engine Improved Ion Engine Flight Unit Flight Unit Flight Unit Flight Unit Weight Redist. System Weight Redist. System Medium Laser Improved Medium Laser Particle Cannon Improved Assault Rifle Mining Claw [Rating: 21] Favorites ----------- Power Ion Engine Engine Ion Engine Propulsion Light Treads Treads Light Treads Wheel Compact Wheel Hover Unit Hover Unit Flight Unit Flight Unit Utility Large Storage Unit Device Structural Scanner Storage Large Storage Unit Protection Light Armor Plating Weapon Improved Assault Rifle Energy Gun Medium Laser Energy Cannon Particle Cannon Ballistic Gun Improved Assault Rifle Launcher Grenade Launcher Slashing Weapon Mining Claw Build | -11 -10 -10 -9 -9 -9 -8 ------- Run | Yrd Mat Min Mat Min Exi Min Slots Evolved 2 | . . . 2 . . . Power . | . . . . . . . Propulsion 2 | . . . 2 . . . Utility . | . . . . . . . Weapon . | . . . . . . . Parts Attached 35 | 7 10 . 8 9 . 1 Power 5 | 2 . . 2 1 . . Engine 5 | 2 . . 2 1 . . Core . | . . . . . . . Reactor . | . . . . . . . Propulsion 9 | 2 . . 2 5 . . Treads 3 | 2 . . 1 . . . Leg . | . . . . . . . Wheel 3 | . . . . 3 . . Hover 1 | . . . 1 . . . Flight 2 | . . . . 2 . . Utility 4 | 1 2 . 1 . . . Device 1 | . 1 . . . . . Storage 2 | 1 1 . . . . . Processor . | . . . . . . . Hackware . | . . . . . . . Protection 1 | . . . 1 . . . Artifact . | . . . . . . . Weapon 17 | 2 8 . 3 3 . 1 Energy Gun 5 | 2 . . 1 1 . 1 Energy Cannon 3 | . 1 . . 2 . . Ballistic Gun 5 | . 5 . . . . . Ballistic Cannon . | . . . . . . . Launcher 3 | . 2 . 1 . . . Special Weapon . | . . . . . . . Impact Weapon . | . . . . . . . Slashing Weapon 1 | . . . 1 . . . Piercing Weapon . | . . . . . . . Special Melee Weapon . | . . . . . . . Unidentified Prototypes 3 | . 1 . 2 . . . Parts Lost 15 | . . 2 6 2 . 5 Power 3 | . . 1 1 . . 1 Propulsion 7 | . . 1 1 2 . 3 Utility 2 | . . . 2 . . . Weapon 3 | . . . 2 . . 1 Highest Loss Streak 5 | . . 2 5 2 . 5 To Critical Strikes . | . . . . . . . Average Slot Usage (%) 83 | . 98 81 69 70 77 60 Engine 9 | . 14 5 6 11 11 5 Treads 18 | . 28 19 17 3 . . Wheel 3 | . . . . 9 33 22 Hover 1 | . . . 5 3 . . Device 8 | . 12 14 . . . . Storage 12 | . 14 14 11 11 11 11 Protection 1 | . . . 7 . . . Energy Gun 1 | . . . 1 6 . . Energy Cannon 3 | . . . . 15 22 22 Ballistic Gun 20 | . 26 28 15 . . . Naked Turns . | . . . . . . . Heaviest Build 37 | 14 32 32 37 31 31 28 Greatest Support 40 | 40 40 40 40 38 38 12 Greatest Overweight (x) 9 | 1 . 1 1 9 . 2 Average Overweight (x) . | . . . . 1 . 2 Largest Inventory Capacity 15 | 8 15 15 15 15 15 15 Average Capacity 13 | 6 11 15 15 15 15 15 Most Carried 15 | 4 9 9 15 13 14 14 Average Carried 9 | 2 8 9 12 10 12 13 Final Capacity 15 | 8 15 15 15 15 15 15 Final Carried 14 | 4 9 9 14 12 14 13 Class Distribution -------------------- 98% | Mutant Dominant Class ---------------- Mutant | -10/Materials Mutant | -10/Mines Mutant | -9/Materials Mutant | -9/Mines Mutant | -9/Exiles Mutant | -8/Mines Resources | -11 -10 -10 -9 -9 -9 -8 ----------- Run | Yrd Mat Min Mat Min Exi Min Matter Collected 1150 | 224 432 85 329 80 . . Remotely . | . . . . . . . Salvage Created 2160 | . 707 245 667 541 . . Parts 133 | . 59 11 44 19 . . Haulers Intercepted 5 | . 2 . 3 . . . Recyclers Shooed 4 | . . . 1 3 . . Parts Field Recycled . | . . . . . . . Retrieved Matter . | . . . . . . . Parts Self-Destructed . | . . . . . . . Prevented . | . . . . . . . Kills | -11 -10 -10 -9 -9 -9 -8 ------- Run | Yrd Mat Min Mat Min Exi Min Combat Hostiles Destroyed 31 | . 12 5 10 4 . . Guns 22 | . 7 5 9 1 . . Cannons 3 | . . . . 3 . . AOE 6 | . 5 . 1 . . . Classes Destroyed 10 | . 8 . 1 1 . . Worker 6 | . 4 1 . 1 . . Builder 7 | . 4 . 1 2 . . Tunneler 1 | . . . . 1 . . Hauler 5 | . 2 . 3 . . . Recycler 10 | . 2 . 3 5 . . Operator 1 | . 1 . . . . . Watcher 5 | . 3 . 2 . . . Swarmer 13 | . 3 . 6 4 . . Grunt 16 | . 9 5 2 . . . Sentry 2 | . . . 2 . . . Best Kill Streak 12 | . 12 3 4 5 . . Combat Bots Only 4 | . 4 3 3 4 . . Max Kills in Single Turn 3 | . 3 2 2 1 . . Gunslinging 1 | . . 1 . . . . Exploded 2 | . 2 . 1 . . . Melee . | . . . . . . . Uniques/NPCs Destroyed . | . . . . . . . Combat | -11 -10 -10 -9 -9 -9 -8 -------- Run | Yrd Mat Min Mat Min Exi Min Hostile Shots Fired 227 | . 38 21 106 28 . 34 Missed 63 | . 11 6 35 8 . 3 Damage Taken 1956 | . 300 182 790 159 . 525 Core 462 | . 49 10 195 77 . 131 Absorbed by Shields . | . . . . . . . Core Remaining (%) 88 | 100 . 76 . . . . Volleys Fired 151 | . 43 14 63 25 . 6 Largest 2 | . 2 2 2 2 . 2 Hottest 136 | . 118 46 79 136 . 136 Shots Fired 265 | . 86 31 91 44 . 13 Gun 210 | . 78 31 89 11 . 1 Cannon 47 | . 2 . . 33 . 12 Launcher 8 | . 6 . 2 . . . Special . | . . . . . . . Kinetic 189 | . 76 31 82 . . . Thermal 68 | . 4 . 7 44 . 13 Explosive 8 | . 6 . 2 . . . Electromagnetic . | . . . . . . . Robot Hit Streak 13 | . 11 10 13 6 . 2 Robot Miss Streak 3 | . 2 2 3 3 . 1 Penetration Max . | . . . . . . . Secondary Targets 5 | . 1 2 2 . . . Max Gunslinging Chain 1 | . 1 1 1 . . . Autonomous 1 | . . . . . . 1 Shots Hit Robots 168 | . 56 20 60 25 . 7 Core Hits 86 | . 39 10 25 11 . 1 Critical Kills 2 | . 1 . 1 . . . Critical Parts Destroyed . | . . . . . . . Critical Strikes 3 | . 1 . 1 1 . . Burn 1 | . . . . 1 . . Destroy 2 | . 1 . 1 . . . Melee Attacks 14 | . . . 14 . . . Impact . | . . . . . . . Slashing 14 | . . . 14 . . . Piercing . | . . . . . . . Sneak Attacks . | . . . . . . . Combat Hostiles . | . . . . . . . Follow-up Attacks . | . . . . . . . Damage Inflicted 3335 | . 1226 325 1144 487 . 153 Guns 2241 | . 774 325 1011 99 . 32 Cannons 529 | . 20 . . 388 . 121 Explosions 545 | . 412 . 133 . . . Melee . | . . . . . . . Ramming 20 | . 20 . . . . . Kinetic 2027 | . 762 325 940 . . . Thermal 743 | . 32 . 71 487 . 153 Explosive 545 | . 412 . 133 . . . Electromagnetic . | . . . . . . . Impact . | . . . . . . . Slashing . | . . . . . . . Piercing . | . . . . . . . Highest Corruption 1 | . 1 1 . . . . Average Corruption 1 | . 1 1 . . . . Corruption Purged . | . . . . . . . Corruption Blocked . | . . . . . . . Effects 9 | . 2 7 . . . . Message Errors 1 | . 1 . . . . . Matter Fused 1 | . . 1 . . . . Energy Discharges 1 | . . 1 . . . . Data Loss (minor) 2 | . . 2 . . . . Misfires 3 | . . 3 . . . . Alerts 1 | . 1 . . . . . Overload Shots . | . . . . . . . Overflow Damage 28 | . . . . 28 . . Projectiles 28 | . . . . 28 . . Explosions . | . . . . . . . Melee . | . . . . . . . Knockbacks . | . . . . . . . Impact . | . . . . . . . Kinetic . | . . . . . . . Secondary . | . . . . . . . Self-Inflicted Damage 29 | . 12 . 17 . . . Shots 2 | . 1 . 1 . . . Rammed 2 | . 2 . . . . . Targets Rammed 2 | . 2 . . . . . Kicked . | . . . . . . . Crushed . | . . . . . . . Highest Temperature 635 | . 337 23 84 336 . 635 Average Temperature 106 | . 77 7 27 101 . 391 Received Heat Transfer 783 | . 99 120 213 . . 351 Effects 9 | . . . . 1 . 8 Energy Bleed 1 | . . . . . . 1 Interference 3 | . . . . 1 . 2 Matter Decay 2 | . . . . . . 2 Damage (minor) 1 | . . . . . . 1 Damage (major) 2 | . . . . . . 2 Siege Activations . | . . . . . . . Robots Corrupted . | . . . . . . . Combat Hostiles . | . . . . . . . Parts Fried . | . . . . . . . Impact Corruptions . | . . . . . . . Robots Melted . | . . . . . . . Combat Hostiles . | . . . . . . . Parts Melted 5 | . . . . 5 . . Heat Transferred 1554 | . 74 . 148 1073 . 259 Parts Sabotaged . | . . . . . . . Parts Stolen . | . . . . . . . Parts Stripped . | . . . . . . . Power Chain Reactions . | . . . . . . . Alert | -11 -10 -10 -9 -9 -9 -8 ------- Run | Yrd Mat Min Mat Min Exi Min Peak Influence 206 | . 206 82 144 173 . . Initial 43 | . . 13 . 43 . . Average 59 | . 79 31 56 87 . . Maximum Alert Level 1 | . 1 . . . . . Low Security (%) 97 | 100 94 100 100 100 . 100 Level 1 2 | . 5 . . . . . Level 2 . | . . . . . . . Level 3 . | . . . . . . . Level 4 . | . . . . . . . Level 5 . | . . . . . . . High Security . | . . . . . . . Max Security . | . . . . . . . Squads Dispatched 5 | . 3 . 2 . . . Investigation 2 | . 2 . . . . . Extermination . | . . . . . . . Reinforcement 3 | . 1 . 2 . . . Assault . | . . . . . . . Garrison . | . . . . . . . Intercept . | . . . . . . . Searches Triggered . | . . . . . . . Construction Impeded 1 | . . . 1 . . . Haulers Reinforced . | . . . . . . . Active Scanning Responses . | . . . . . . . Cargo Convoy Interrupts . | . . . . . . . Stealth | -11 -10 -10 -9 -9 -9 -8 --------- Run | Yrd Mat Min Mat Min Exi Min Distress Signals 1 | . 1 . . . . . Communications Jammed . | . . . . . . . Distress Signals . | . . . . . . . Times Spotted 56 | . 19 6 24 4 . 3 Peak Tracking Total 9 | . 4 3 9 4 . 3 Tactical Retreats . | . . . . . . . Traps | -11 -10 -10 -9 -9 -9 -8 ------- Run | Yrd Mat Min Mat Min Exi Min Traps Triggered 3 | . 3 . . . . . Indirectly . | . . . . . . . Trap Hack Attempts . | . . . . . . . Triggered . | . . . . . . . Disarmed . | . . . . . . . Reprogrammed . | . . . . . . . Reused . | . . . . . . . Traps Extracted . | . . . . . . . Installed . | . . . . . . . Triggered . | . . . . . . . Machines | -11 -10 -10 -9 -9 -9 -8 ---------- Run | Yrd Mat Min Mat Min Exi Min Machines Disabled 4 | . 1 . 2 1 . . Max in Single Turn 1 | . 1 . 1 1 . . Machines Repaired . | . . . . . . . Machines Dismantled . | . . . . . . . Machines Sabotaged . | . . . . . . . Overloaded Fab Kills . | . . . . . . . Hacking | -11 -10 -10 -9 -9 -9 -8 --------- Run | Yrd Mat Min Mat Min Exi Min Machines Accessed 6 | . 3 . 2 . 1 . Terminals 5 | . 3 . 2 . . . Fabricators . | . . . . . . . Repair Stations . | . . . . . . . Recycling Units . | . . . . . . . Scanalyzers . | . . . . . . . Garrison Access . | . . . . . . . Total Hacks 11 | . 7 . 3 . 1 . Successful 2 | . . . 1 . 1 . Failed 9 | . 7 . 2 . . . Catastrophic . | . . . . . . . Database Lockouts . | . . . . . . . Manual 6 | . 4 . 1 . 1 . Terminals 10 | . 7 . 3 . . . Fabricators . | . . . . . . . Repair Stations . | . . . . . . . Recycling Units . | . . . . . . . Scanalyzers . | . . . . . . . Garrison Access . | . . . . . . . Terminal Hacks 2 | . . . 1 . 1 . Zone Layout 1 | . . . 1 . . . Derelict Proto ID Bank 1 | . . . . . 1 . Fabricator Hacks . | . . . . . . . Repair Station Hacks . | . . . . . . . Recycling Unit Hacks . | . . . . . . . Scanalyzer . | . . . . . . . Garrison Access Hacks . | . . . . . . . Unauthorized Hacks . | . . . . . . . Terminals . | . . . . . . . Fabricators . | . . . . . . . Repair Stations . | . . . . . . . Recycling Units . | . . . . . . . Scanalyzers . | . . . . . . . Garrison Access . | . . . . . . . Data Cores Recovered . | . . . . . . . Used . | . . . . . . . Hacking Detections 3 | . 3 . . . . . Full Trace Events . | . . . . . . . Feedback Events . | . . . . . . . Feedback Blocked . | . . . . . . . Robot Schematics Acquired . | . . . . . . . Robots Built . | . . . . . . . Authchips . | . . . . . . . Time . | . . . . . . . Total Robot Build Rating . | . . . . . . . Part Schematics Acquired . | . . . . . . . Parts Built . | . . . . . . . Authchips . | . . . . . . . Time . | . . . . . . . Total Part Build Rating . | . . . . . . . Parts Repaired . | . . . . . . . Time . | . . . . . . . Parts Recycled . | . . . . . . . Recycled Matter . | . . . . . . . Retrieved Matter . | . . . . . . . Retrieved Components . | . . . . . . . Parts Scanalyzed . | . . . . . . . Part Schematics Acquired . | . . . . . . . Parts Damaged . | . . . . . . . Bothacking | -11 -10 -10 -9 -9 -9 -8 ------------ Run | Yrd Mat Min Mat Min Exi Min Used RIF Installer . | . . . . . . . Robots Hacked . | . . . . . . . Non-combat . | . . . . . . . Combat . | . . . . . . . Robot Hacks Applied . | . . . . . . . Relay Couplers Released . | . . . . . . . Fabnet Peak Effective % . | . . . . . . . Robots Rewired . | . . . . . . . Allies Hacked . | . . . . . . . Hacks Repelled . | . . . . . . . Allies | -11 -10 -10 -9 -9 -9 -8 -------- Run | Yrd Mat Min Mat Min Exi Min Total Allies 4 | . . 3 . 1 . . Largest Group 3 | . . 3 . 1 1 . Highest-Rated Group 40 | . . 40 . 31 31 . Highest-Rated Ally 31 | . . 16 . 31 31 . Total Orders . | . . . . . . . Ally Attacks 16 | . . 16 . . . . Total Damage 155 | . . 155 . . . . Kills 1 | . . 1 . . . . Allies Corrupted . | . . . . . . . Allies Melted . | . . . . . . . Intel | -11 -10 -10 -9 -9 -9 -8 ------- Run | Yrd Mat Min Mat Min Exi Min Robot Analysis Total . | . . . . . . . Derelict Logs Recovered 2 | . . 1 . 1 . . Drone Launches . | . . . . . . . Drone Recoveries . | . . . . . . . Exploration | -11 -10 -10 -9 -9 -9 -8 ------------- Run | Yrd Mat Min Mat Min Exi Min Turns Passed 4661 | 112 1571 1267 897 474 318 22 Spaces Moved 2524 | 73 883 599 362 252 352 3 Core 27 | 20 . . . 7 . . Treads 1958 | 53 883 599 362 61 . . Legs . | . . . . . . . Wheels 525 | . . . . 170 352 3 Hover . | . . . . . . . Flight 14 | . . . . 14 . . Fastest Speed 50 | 50 160 160 160 90 90 120 Average Speed 163 | 136 160 203 188 155 90 120 Slowest Speed 500 | 160 160 240 240 500 90 120 Overloaded Moves . | . . . . . . . Propulsion Burnouts . | . . . . . . . Robots Hopped . | . . . . . . . Cave-ins Triggered . | . . . . . . . Exploration Rate (%) 44 | 7 96 84 32 40 50 5 Regions Visited 6 Branch Regions 4 Pre-discovered Areas 1 | . . . . 1 . . Known Exits Taken . | . . . . . . . Unknown Exits Taken 6 | 1 1 1 1 1 1 . Scrap Searched 2 | . . 1 . 1 . . Spaces Dug 6 | . . . 6 . . . Terrain Destroyed 58 | . 35 . 23 . . . Melee 6 | . . . 6 . . . Projectile . | . . . . . . . AOE 52 | . 35 . 17 . . . Terrain Rammed . | . . . . . . . Walls Destroyed . | . . . . . . . Machines Disabled . | . . . . . . . Actions | -11 -10 -10 -9 -9 -9 -8 --------- Run | Yrd Mat Min Mat Min Exi Min Total 2760 | 82 954 619 453 288 353 11 Wait 7 | . . 7 . . . . Move 2518 | 72 882 598 361 251 351 3 Hop . | . . . . . . . Pick Up 19 | 3 10 . 5 . 1 . Fast Attach 16 | 6 1 . 5 4 . . Attach 7 | . 1 . . 5 . 1 Detach 6 | . 1 . 1 3 . 1 Swap 12 | 1 8 . 3 . . . Drop 7 | . 6 . 1 . . . Fire 151 | . 43 14 63 25 . 6 Melee 14 | . . . 14 . . . Ram . | . . . . . . . Kick . | . . . . . . . Crush 2 | . 2 . . . . . Escape Stasis . | . . . . . . . Rewire 1 | . . . . . 1 . Trap . | . . . . . . . Miscellaneous . | . . . . . . . Route ------- -11/Scrapyard -10/Materials (discovered 4 exits: *Mat x3 / [*Min]) -10/Mines (discovered 2 exits: *Mat x2) -9/Materials (discovered 2 exits: [*Min x2]) -9/Mines (discovered 2 exits: [*Mat] / *Exi) -9/Exiles -8/Mines History --------- Turn | Location | Event 17 | -11/Scrapyard | Discovered new exit (range 16) 113 | -11/Scrapyard | Entered Materials 286 | -10/Materials | Discovered new exit (range 14) 316 | -10/Materials | Build established: Mutant 941 | -10/Materials | Discovered new exit (range 5) 1110 | -10/Materials | Discovered new exit (range 13) 1385 | -10/Materials | Discovered new exit (range 15) 1684 | -10/Materials | Entered Mines 1697 | -10/Mines | Assisted by bots powering up and referring to "LRC-V3" 1795 | -10/Mines | Discovered new exit (range 14) 1850 | -10/Mines | Lost 3 allies 1986 | -10/Mines | Learned Materials emergency access door positions 2051 | -10/Mines | Discovered new exit (range 10) 2951 | -10/Mines | Entered Materials 2951 | -9/Materials | Evolved 2 slots: Propulsion x2 2951 | -9/Materials | Discovered new exit (range 7) 3720 | -9/Materials | Discovered new exit (range 12) 3848 | -9/Materials | Entered Mines 3874 | -9/Mines | Lost 5 parts (1p1n1u2w) 3921 | -9/Mines | Learned location of Zion (-7) 3952 | -9/Mines | A weapon hastily lodged in a ceiling crevice suddenly fell to the ground 4011 | -9/Mines | Core integrity fell below 50% 4194 | -9/Mines | Discovered new exit (range 8) 4196 | -9/Mines | Received a Mining Laser from a helpful Derelict 4310 | -9/Mines | Deemed a non-threat by the Exiles lab entrance 4311 | -9/Mines | Discovered new exit (range 5) 4322 | -9/Mines | Entered Exiles 4322 | -9/Exiles | Accompanied by 1 ally 4356 | -9/Exiles | Met 8R-AWN 4373 | -9/Exiles | Met EX-HEX 4416 | -9/Exiles | Met EX-BIN 4455 | -9/Exiles | Aligned with FarCom system 4456 | -9/Exiles | Given EX-Vault access code 4488 | -9/Exiles | Opened EX-Vault 4503 | -9/Exiles | Found AWS/Thermal 4524 | -9/Exiles | Warned to stay clear of 0b10 Research branches 4556 | -9/Exiles | Met EX-DEC 4622 | -9/Exiles | Discovered new exit (range 15) 4640 | -9/Exiles | Left Exiles lab with AWS/Thermal 4640 | -9/Exiles | Entered Mines 4651 | -8/Mines | Core integrity fell below 20% 4662 | -8/Mines | Destroyed by G-47 Trooper with Particle Gun Last Messages --------------- 04652_ Critical hit (Burn: +37). 04654_ Overheating: Matter decay (-75). 04654_ Com. Wheel destroyed. 04654_ Critical hit (Burn: +37). 04655_ Overheating: Energy bleed (-10). 04656_ Overheating: Matter decay (-41). 04656_ G-47 Trooper overheating. 04657_ Overheating: System interference. 04657_ Particle Cannon temporarily disabled. 04658_ K-01 Serf collects debris. 04659_ Overheating: Particle Cannon damaged (-9). 04659_ G-47 Trooper overheating. 04660_ Particle Cannon destroyed. 04660_ Critical hit (Burn: +37). 04662_ Overheating: Lrg. Storage Unit damaged (-124). 04662_ Overheating: Arm. Wheel damaged (-20). 04662_ Arm. Wheel destroyed. Map ----- +----------------------------------------------------+ | ?????????????????????????????????????? | | ?????????????????????????????????????? | | ?????????????????????????????????????? | | ?????????????????????????????????????? | | ?????????????????????????????????????? | | ?????????????????????????????????????? | | ?????????????????????????????????????? | | ?????????????????????????????????????? | | ?????????????????????????????????????? | | ?????????????????????????????????????? | | ?????????????????????????????????????? | | ?????????????????????????????????????? | | ?????????????????????????????????????? | | ???????????????????????#?????????????? | | ??????????????????????? #????????????? | | ??????????????????????? ####????????? | | ??????????????????????? ?????????? | | ???????????????????????# ?????????? | | ???????????????????????# ??????????? | | ???????????????????????# ??????????? | | ???????????????????????# #??????????? | | ???????????????????????# #??????????? | | ????????????????????#### #??????????? | | ???????????????????## # #??????????? | | ??????????????????## ######?????? | | ??????????????????# @ #??? | | ??????????????????# g k#??? | | ??????????????????#g% # ####### #??? | | ?????????????????# g ## #??????????? | | ?????????????????# ## #??????????? | | ?????????????????## ### #??????????? | | ??????????????????####??# #??????????? | | ????????????????????????# #??????????? | | ????????????????????????# #??????????? | | ????????????????????????? ???????????? | | ?????????????????????????#???????????? | | ?????????????????????????????????????? | | ?????????????????????????????????????? | | ?????????????????????????????????????? | | ?????????????????????????????????????? | | ?????????????????????????????????????? | | ?????????????????????????????????????? | | ?????????????????????????????????????? | | ?????????????????????????????????????? | | | | | | | | | | | | | +----------------------------------------------------+ Best States ------------- Heat Dissipation 28 Energy Generation 14 Energy Capacity 280 Matter Stores 300 Matter Capacity 300 Sight Range 16 Terrain Scan Density 10 Armor Coverage 150 Evasion (%) 50 Recoil Reduction 2 Item Schematics ----------------- None Robot Schematics ------------------ None Fabricated ------------ Nothing Alien Tech Used ----------------- None Achievements -------------- None Challenges ------------ None Game ------ Seed XenonDynamicSuperbattery Manual? 0 Play Time 00:24:59 Cumulative 12.5 hours Start 2024.04.04 @ 17:50:33 End 2024.04.04 @ 21:24:50 Sessions 1 Manual Loads 0 Difficulty Rogue Special Mode None Game No. 53 Rogue 53 Adventurer 0 Explorer 0 Win Type - Total 0 Types 0/0/0/0/0/0/0/0/0 Lore% 9 Gallery% 16 Achievement% 14 Wizard Run 0 Options --------- Layout 1 ASCII 0 Keyboard 1 Movement Arrows Keybinds 0 Fullscreen 1 Font 24/Smallcaps Map View 50x35 Zoom Use 0% Tactical HUD 1 Map Filters NONE Filters NONE Steam 1 RUN: fa3ff2eb-da92-4206-8d06-49e39a5d2281